Cogmind - Beta 16 @@@ ROGUE MODE // 2025.11.22 @ 22:56:22 Player: JuustuToug Result: Destroyed by QN-Y9B(j) with Overtuned Pulse Rifle Performance ------------- Evolutions (0) 0 Regions Visited (3) 600 Robots Destroyed (10) 50 Value Destroyed (289) 289 Prototype IDs (7) 140 Alien Tech Used (0) 0 Bonus (800) 800 TOTAL SCORE: 1879 Bonus ------- Registered with UFD 300 Met Optimus in HQ 500 Cogmind --------- Core Integrity 0/250 Matter 300/300 Energy 99/100 System Corruption 0% Temperature Cool (12) Movement Core (50) Location -9/Scraptown Parts ------- > --- POWER (1) -------- (None) > --- PROPULSION (2) --- (None) > --- UTILITY (2) ------ (None) > --- WEAPON (2) ------- (None) > --- INVENTORY (5) ---- Structural Scanner Improved Actuator Array Light EM Pulse Cannon Rocket Launcher CPS Tube (2) Peak State ------------ > --- POWER ------------ Light Ion Engine > --- PROPULSION ------- Light Treads Compact Wheel > --- UTILITY ---------- Large Storage Unit Makeshift Thermal Plating > --- WEAPON ----------- Plasma Cannon LU-1G1's Laser Shovel > --- INVENTORY -------- Light Treads Spiked Treads Aluminum Leg Aluminum Leg Cooling System Structural Scanner Experimental Terrain Scanner Advanced Terrain Scan Processor Salvage Targeting Computer Improved Actuator Array Light EM Pulse Cannon Light EM Pulse Cannon Particle Cannon Rocket Launcher CPS Tube [Rating: 21] Favorites ----------- Power Ion Engine Engine Ion Engine Propulsion Light Treads Treads Light Treads Wheel Compact Wheel Utility Makeshift Thermal Plating Device Subdweller Optics Storage Small Storage Unit Protection Makeshift Thermal Plating Weapon EM Pulse Gun Energy Gun EM Pulse Gun Energy Cannon Heavy Plasma Cannon Special Weapon LU-1G1's Laser Shovel Build | -11 -10 -10 -9 ------- Run | Yrd Mat Sub Scr Slots Evolved . | . . . . Power . | . . . . Propulsion . | . . . . Utility . | . . . . Weapon . | . . . . Parts Attached 23 | 6 . 6 11 Power 2 | 1 . . 1 Engine 2 | 1 . . 1 Core . | . . . . Reactor . | . . . . Propulsion 6 | 2 . 2 2 Treads 5 | 2 . 1 2 Leg . | . . . . Wheel 1 | . . 1 . Hover . | . . . . Flight . | . . . . Utility 6 | 1 . 3 2 Device 1 | . . 1 . Storage 4 | 1 . 1 2 Processor . | . . . . Hackware . | . . . . Protection 1 | . . 1 . Artifact . | . . . . Weapon 9 | 2 . 1 6 Energy Gun 3 | 2 . 1 . Energy Cannon 5 | . . . 5 Ballistic Gun . | . . . . Ballistic Cannon . | . . . . Launcher . | . . . . Special Weapon 1 | . . . 1 Impact Weapon . | . . . . Slashing Weapon . | . . . . Piercing Weapon . | . . . . Special Melee Weapon . | . . . . Unidentified Prototypes 1 | . . . 1 Parts Lost 12 | . . 1 11 Power 1 | . . . 1 Propulsion 2 | . . . 2 Utility 5 | . . . 5 Weapon 4 | . . 1 3 Highest Loss Streak 11 | . . 1 11 To Critical Strikes . | . . . . Average Backups 10 | 3 5 9 11 Power . | . 1 1 . Propulsion 3 | 1 3 4 3 Utility 2 | . . 2 3 Weapon 2 | 1 1 1 2 Tool/Special . | . . . . Unused Backups 9 | . . . 9 Power 1 | . . . 1 Propulsion 1 | . . . 1 Utility 3 | . . . 3 Weapon 3 | . . . 3 Tool/Special 1 | . . . 1 Average Slot Usage (%) 94 | . 85 88 98 Engine 13 | . 14 14 13 Treads 17 | . 28 22 14 Wheel 10 | . . 5 13 Storage 13 | . 14 14 13 Protection 8 | . . 2 12 Energy Gun 15 | . 28 28 7 Energy Cannon 12 | . . . 20 Peak Build Rating 21 | 6 6 11 21 Average Rating 13 | 5 6 9 16 On Entrance 5 | . 6 6 10 Avg Prop Armor Cover (%) 8 | . . 10 7 Naked Turns 3 | . . . 3 Heaviest Build 209 | 14 14 209 209 Greatest Support 40 | 40 40 40 40 Greatest Overweight (x) 13 | . . 13 13 Average Overweight (x) 2 | . . 4 2 Largest Inventory Capacity 35 | 8 8 35 35 Average Capacity 16 | 7 8 21 14 Most Carried 15 | 5 6 14 15 Average Carried 10 | 3 5 10 11 Final Capacity 35 | 8 8 35 5 Final Carried 14 | 5 6 14 5 Class Distribution -------------------- 76% | Mutant 23% | Hauler-Mutant Dominant Class ---------------- Mutant | -10/Materials Hauler-Mutant | -10/Subcaves Mutant | -9/Scraptown Resources | -11 -10 -10 -9 ----------- Run | Yrd Mat Sub Scr Matter Collected 465 | 191 . 134 140 Remotely . | . . . . Salvage Created 412 | . . 246 166 Parts 20 | . . 16 4 Haulers Intercepted . | . . . . Recyclers Shooed . | . . . . Parts Field Recycled . | . . . . Retrieved Matter . | . . . . Parts Self-Destructed 6 | . . 6 . Prevented 3 | . . 3 . Parts Restored . | . . . . Kills | -11 -10 -10 -9 ------- Run | Yrd Mat Sub Scr Combat Hostiles Destroyed 10 | . . 7 3 Melee 2 | . . . 2 Guns 5 | . . 5 . Cannons 1 | . . . 1 Classes Destroyed 5 | . . 2 3 Swarmer 4 | . . 4 . Subdweller 3 | . . 3 . Explorer 1 | . . . 1 Guru 1 | . . . 1 Scrapper 1 | . . . 1 Best Kill Streak 4 | . . 4 3 Combat Bots Only 4 | . . 4 3 Max Kills in Single Turn 2 | . . 2 1 Gunslinging . | . . . . Exploded . | . . . . Melee 1 | . . . 1 Uniques/NPCs Destroyed . | . . . . Combat | -11 -10 -10 -9 -------- Run | Yrd Mat Sub Scr Hostile Shots Fired 80 | . . 35 45 Missed 21 | . . 10 11 Hits 59 | . . 25 34 Melee 8 | . . . 8 Projectile 51 | . . 25 26 Critical Strikes 3 | . . . 3 Damage Taken 1050 | . . 358 692 Core 270 | . . 109 161 Absorbed by Shields . | . . . . Ignored by Resistances 55 | . . 7 48 Core Remaining (%) 100 | 100 . . . Volleys Fired 26 | . . 20 6 Largest 2 | . . 2 2 Hottest 170 | . . 90 170 Shots Fired 49 | . . 40 9 Gun 40 | . . 40 . Cannon 9 | . . . 9 Launcher . | . . . . Special . | . . . . Kinetic . | . . . . Thermal 7 | . . . 7 Explosive . | . . . . Electromagnetic 42 | . . 40 2 Robot Hit Streak 15 | . . 15 8 Robot Miss Streak 2 | . . 2 1 Penetration Max . | . . . . Secondary Targets . | . . . . Shots Hit Robots 33 | . . 29 4 Core Hits 13 | . . 11 2 Critical Kills . | . . . . Critical Parts Destroyed . | . . . . Critical Strikes . | . . . . Melee Attacks . | . . . . Impact . | . . . . Slashing . | . . . . Piercing . | . . . . Sneak Attacks . | . . . . Combat Hostiles . | . . . . Follow-up Attacks . | . . . . Damage Inflicted 498 | . . 378 120 Guns 378 | . . 378 . Cannons 106 | . . . 106 Explosions . | . . . . Melee . | . . . . Ramming 14 | . . . 14 Kinetic . | . . . . Thermal 88 | . . . 88 Explosive . | . . . . Electromagnetic 396 | . . 378 18 Impact . | . . . . Slashing . | . . . . Piercing . | . . . . Highest Corruption . | . . . . Average Corruption . | . . . . Corruption Purged . | . . . . Corruption Blocked . | . . . . Overload Shots . | . . . . Overflow Damage . | . . . . Projectiles . | . . . . Explosions . | . . . . Melee . | . . . . Knockbacks . | . . . . Impact . | . . . . Kinetic . | . . . . Secondary . | . . . . Self-Inflicted Damage 5 | . . . 5 Shots . | . . . . Rammed 2 | . . . 2 Targets Rammed 4 | . . . 4 Kicked . | . . . . Crushed 2 | . . . 2 Highest Temperature 276 | . . . 276 Average Temperature 154 | . . . 154 Received Heat Transfer 453 | . . 90 363 Siege Activations . | . . . . Martial Activations . | . . . . Shielding Activations . | . . . . Robots Disrupted . | . . . . Combat Hostiles . | . . . . Robots Corrupted 2 | . . 2 . Combat Hostiles 2 | . . 2 . Parts Fried 3 | . . 3 . Impact Corruptions . | . . . . Robots Melted . | . . . . Combat Hostiles . | . . . . Parts Melted 1 | . . . 1 Heat Transferred 150 | . . . 150 Parts Sabotaged . | . . . . Parts Stolen . | . . . . Parts Stripped . | . . . . Power Chain Reactions . | . . . . Alert | -11 -10 -10 -9 ------- Run | Yrd Mat Sub Scr Maximum Alert Level . | . . . . Low Security (%) 100 | 100 100 . . Level 1 . | . . . . Level 2 . | . . . . Level 3 . | . . . . Level 4 . | . . . . Level 5 . | . . . . High Security . | . . . . Max Security . | . . . . Peak Influence . | . . . . Initial . | . . . . Average . | . . . . Influence Increases 110 | . . 110 . Destroy 0b10 Robot/C 80 | . . 80 . Lose Combat Pursuer 30 | . . 30 . Influence Decreases 110 | . . 110 . Time Decay 110 | . . 110 . Squads Dispatched . | . . . . Investigation . | . . . . Extermination . | . . . . Reinforcement . | . . . . Assault . | . . . . Garrison . | . . . . Intercept . | . . . . Searches Triggered . | . . . . Construction Impeded . | . . . . Haulers Reinforced . | . . . . Active Scanning Responses . | . . . . Cargo Convoy Interrupts . | . . . . Stealth | -11 -10 -10 -9 --------- Run | Yrd Mat Sub Scr Distress Signals . | . . . . Communications Jammed . | . . . . Distress Signals . | . . . . Times Spotted 22 | . . 10 12 Peak Tracking Total 7 | . . 6 7 Tactical Retreats 2 | . . 2 . Traps | -11 -10 -10 -9 ------- Run | Yrd Mat Sub Scr Traps Triggered . | . . . . Indirectly . | . . . . Trap Hack Attempts . | . . . . Triggered . | . . . . Disarmed . | . . . . Reprogrammed . | . . . . Reused . | . . . . Traps Extracted . | . . . . Installed . | . . . . Triggered . | . . . . Machines | -11 -10 -10 -9 ---------- Run | Yrd Mat Sub Scr Machines Disabled 2 | . . . 2 Max in Single Turn 1 | . . . 1 Machines Repaired . | . . . . Machines Dismantled . | . . . . Machines Sabotaged . | . . . . Overloaded Fab Kills . | . . . . Hacking | -11 -10 -10 -9 --------- Run | Yrd Mat Sub Scr Machines Accessed 5 | . 1 1 3 Terminals 1 | . 1 . . Fabricators . | . . . . Repair Stations . | . . . . Recycling Units . | . . . . Scanalyzers . | . . . . Garrison Access . | . . . . Total Hacks 15 | . 2 3 10 Successful 13 | . . 3 10 Failed 2 | . 2 . . Catastrophic . | . . . . Database Lockouts . | . . . . Manual 2 | . 2 . . Terminals 2 | . 2 . . Fabricators . | . . . . Repair Stations . | . . . . Recycling Units . | . . . . Scanalyzers . | . . . . Garrison Access . | . . . . Terminal Hacks 13 | . . 3 10 Record 8 | . . 3 5 Robot Analysis 5 | . . . 5 Fabricator Hacks . | . . . . Repair Station Hacks . | . . . . Recycling Unit Hacks . | . . . . Scanalyzer . | . . . . Garrison Access Hacks . | . . . . Unauthorized Hacks . | . . . . Terminals . | . . . . Fabricators . | . . . . Repair Stations . | . . . . Recycling Units . | . . . . Scanalyzers . | . . . . Garrison Access . | . . . . Data Cores Recovered . | . . . . Used . | . . . . Hacking Detections 1 | . 1 . . Full Trace Events 1 | . 1 . . Feedback Events . | . . . . Feedback Blocked . | . . . . Robot Schematics Acquired . | . . . . Robots Built . | . . . . Authchips . | . . . . Time . | . . . . Total Robot Build Rating . | . . . . Part Schematics Acquired . | . . . . Parts Built . | . . . . Authchips . | . . . . Time . | . . . . Total Part Build Rating . | . . . . Part Studies Acquired . | . . . . Parts Repaired . | . . . . Time . | . . . . Parts Recycled . | . . . . Recycled Matter . | . . . . Retrieved Matter . | . . . . Retrieved Components . | . . . . Parts Scanalyzed . | . . . . Part Schematics Acquired . | . . . . Parts Damaged . | . . . . Bothacking | -11 -10 -10 -9 ------------ Run | Yrd Mat Sub Scr Used RIF Installer . | . . . . Robots Hacked . | . . . . Non-combat . | . . . . Combat . | . . . . Robot Hacks Applied . | . . . . Relay Couplers Released . | . . . . Fabnet Peak Effective % . | . . . . Robots Rewired . | . . . . Allies Hacked . | . . . . Hacks Repelled . | . . . . Allies | -11 -10 -10 -9 -------- Run | Yrd Mat Sub Scr Total Allies . | . . . . Largest Group . | . . . . Highest-Rated Group . | . . . . Highest-Rated Ally . | . . . . Total Orders . | . . . . Ally Attacks . | . . . . Total Damage . | . . . . Kills . | . . . . Allies Corrupted . | . . . . Allies Melted 4 | . . . 4 Intel | -11 -10 -10 -9 ------- Run | Yrd Mat Sub Scr Active Infowar (turns) 56 | . . 56 . Optics 56 | . . 56 . Robot Analysis Total 5 | . . . 5 Derelict Logs Recovered 2 | . . . 2 Drone Launches . | . . . . Drone Recoveries . | . . . . Exploration | -11 -10 -10 -9 ------------- Run | Yrd Mat Sub Scr Turns Passed 4668 | 119 81 1690 2778 Spaces Moved 2196 | 61 41 685 1409 Core 17 | 11 . . 6 Treads 1024 | 50 41 451 482 Legs . | . . . . Wheels 1155 | . . 234 921 Hover . | . . . . Flight . | . . . . Fastest Speed 50 | 50 160 160 50 Average Speed 184 | 140 160 222 169 Slowest Speed 610 | 160 160 610 295 Overloaded Moves . | . . . . Propulsion Burnouts . | . . . . Robots Hopped . | . . . . Potential Cave-ins . | . . . . Cave-ins Triggered . | . . . . Exploration Rate (%) 35 | 3 8 40 89 Regions Visited 3 Branch Regions 2 Pre-discovered Areas 1 | . . . 1 Known Exits Taken . | . . . . Unknown Exits Taken 3 | 1 1 1 . Scrap Searched 12 | . . 3 9 Spaces Dug . | . . . . Terrain Destroyed . | . . . . Melee . | . . . . Projectile . | . . . . AOE . | . . . . Terrain Rammed . | . . . . Walls Destroyed . | . . . . Machines Disabled . | . . . . Actions | -11 -10 -10 -9 --------- Run | Yrd Mat Sub Scr Total 2747 | 94 57 810 1786 Wait 442 | 19 16 85 322 Move 2193 | 60 40 684 1409 Hop . | . . . . Pick Up 39 | 9 1 12 17 Fast Attach 8 | 2 . 2 4 Attach 7 | 4 . 1 2 Detach . | . . . . Swap 13 | . . 4 9 Drop 15 | . . 2 13 Fire 26 | . . 20 6 Melee . | . . . . Ram 2 | . . . 2 Kick . | . . . . Crush 2 | . . . 2 Escape Stasis . | . . . . Rewire . | . . . . Trap . | . . . . Miscellaneous . | . . . . Route ------- -11/Scrapyard -10/Materials -10/Subcaves (discovered 4 exits: *Mat x2 / *Rec / *Scr) -9/Scraptown (discovered 1 exit: [*Fac]) History --------- Turn | Location | Event 5 | -11/Scrapyard | Discovered new exit (range 15) 120 | -11/Scrapyard | Entered Materials 188 | -10/Materials | Discovered new exit (range 6) 201 | -10/Materials | Entered Subcaves 202 | -10/Subcaves | Approached by a straggling Scientist 264 | -10/Subcaves | Shifting Twisted Machinery released Riot Gun 265 | -10/Subcaves | Shifting Twisted Machinery released Shrapnel Trap 312 | -10/Subcaves | Build established: Mutant 410 | -10/Subcaves | Discovered new exit (range 11) 433 | -10/Subcaves | Visited Clippyterm 438 | -10/Subcaves | Identified exit to Recycling 438 | -10/Subcaves | Identified exit to Materials 495 | -10/Subcaves | Shifting Twisted Machinery released Sub. Power Source 495 | -10/Subcaves | Shifting Twisted Machinery released Piercing Trap 1337 | -10/Subcaves | Build established: Hauler-Mutant 1891 | -10/Subcaves | Entered Scraptown 2083 | -9/Scraptown | Heard Great Nut preacher, LISTEN AND RECITE! 2119 | -9/Scraptown | Scanned Subdweller tech in exchange for log data 2127 | -9/Scraptown | Learned location of Warlord (-5) 2227 | -9/Scraptown | Discovered new exit (range 9) 2431 | -9/Scraptown | Build established: Mutant 3068 | -9/Scraptown | Visited Symbiants 3106 | -9/Scraptown | Visited Cave Peace 3140 | -9/Scraptown | Visited Bundlers 3404 | -9/Scraptown | Visited Red Mages 3469 | -9/Scraptown | Visited SPCMW 3487 | -9/Scraptown | Visited IN-MT5's Study 3504 | -9/Scraptown | Visited Shadow of the Wyrm 3525 | -9/Scraptown | Visited UFD Registry 3525 | -9/Scraptown | Registered with UFD as "Cogrider" 3573 | -9/Scraptown | Visited Junk Repository 3615 | -9/Scraptown | Visited Infowarlord's Domain 3624 | -9/Scraptown | Found Exp. Terrain Scanner 3650 | -9/Scraptown | Visited Science Testing Area 3692 | -9/Scraptown | Received an X-ray algorithm 3828 | -9/Scraptown | Visited Botcube Research 3866 | -9/Scraptown | Visited Analyses Database 3913 | -9/Scraptown | Visited LU-1G1's Boring Crew 3948 | -9/Scraptown | Visited Abandonware Association 3962 | -9/Scraptown | Learned abandonware demo "REVENGE.EXE" 3962 | -9/Scraptown | Learned abandonware demo "REBOOT5.EXE" 3994 | -9/Scraptown | Visited Scrap Suit Storage 4125 | -9/Scraptown | Met Optimus 4125 | -9/Scraptown | Accepted into 0bPrime 4525 | -9/Scraptown | Civil war broke out across Scraptown 4613 | -9/Scraptown | Core integrity fell below 50% 4623 | -9/Scraptown | Found Prototype Special Weapon 4623 | -9/Scraptown | Identified LU-1G1's Laser Shovel 4632 | -9/Scraptown | Lost 6 allies 4663 | -9/Scraptown | Core integrity fell below 20% 4666 | -9/Scraptown | Released all parts (4) 4669 | -9/Scraptown | Destroyed by QN-Y9B(j) with Overtuned Pulse Rifle Last Messages --------------- 04660_ 1W-BV3(p) destroyed. 04664_ Mak. Thermal Plating destroyed. 04665_ Penetrated by Bolt. 04665_ Bolt penetrates Wall. 04666_ Lgt. EM Pulse Cannon destroyed. 04666_ Released Spk. Treads. 04666_ Released Particle Cannon. 04666_ Released Lrg. Storage Unit. 04666_ Cooling System crushed and broken. 04666_ Salvage Targeting Computer crushed and broken. 04666_ LU-1G1's Laser Shovel crushed and broken. 04666_ Adv. Terrain Scan Processor crushed and broken. 04666_ Plasma Cannon crushed and broken. 04666_ Exp. Terrain Scanner crushed and broken. 04666_ Lgt. Treads crushed and broken. 04666_ Aluminum Leg crushed and broken. 04666_ Released Lgt. Treads. 04666_ Lgt. Treads crushed and broken. Map ----- +----------------------------------------------------+ | ?????????????????????????????????????????????????? | | ?????????????????????????????????????????????????? | | ?????????????????????????????????????????????????? | | ?????????????????????????????????????????????????? | | ?????????????????????????????????????????????????? | | ??????????????????????????[!?????????????????????? | | ??????????????????????????![?????????????????????? | | ??????????????????????????![?????????????????????? | | ??????????????????????????|%#????????????????????? | | ##????#######????????????#%!##########???????????? | | #????" !"??############!=## # #???????????? | | #????#" "??#"""""""""##!h## #!""" #???????????? | | #?####X ##?# " " " ##[=## #*]%" #?#?????????? | | #?#" "#?# ##=!## # " " # #?????????? | | #?#"! !"#?# "# #" ##[!##*= #?????????? | | #?#" "#?# "#X#" ##=!##%#### ## #?????????? | | "#?#"! !"#?# "###" ##jj##%= #?#?????????? | | "#?#"! !"#?# """"" #=!]#![# #???????????? | | #?## ##?# ##%!##!# # #?????????? | | "#?# #?# ##jj## #?????????? | | ##?##### ####?###### #####%[## #########?????????? | | ######## "#######;## ;;###=!## ##???#####????????? | | """"" " = "" """!%**[!"#???"""""????????? | | !%[ %= %[![x%! "#?? " "" "#??????? | | !! ! ==%! "#?? " "" "#??????? | | !! @! "#?" "#??????? | | * !%*= = "##" """"#??????? | | =!%! =%*! " "#??????? | | " """"" " """"""""""" "##" " "" "#??????? | | """""""""""""""""""""""""" "#?" " "" ????????? | | ###### ################"" "#?? """"?????????? | | # ##????????#"" "#########????????? | | # X"#????????#"" "## """"#????????? | | # "" "" ##????????#"" "## " "#????????? | | # "" "" X"#??????###"" * "## X"#????????? | | # " " ######### #"= !=[ ## "#????????? | | "" =*[*%[ ""#????????? | | "" =!!%!! ## " "#????????? | | # " " ######### #"!%=![*[## """"#????????? | | # "" "" ""#??????###"%![=%%"## """"#????????? | | # "" "" ##????????#""!=[ "#########????????? | | # X"#????????#"" "########?????????? | | # ##????????#"" "## """"#?????????? | | ###### ################"" "## """"#?????????? | | """""""""""""""""""""""""" "## "&""#?????????? | | """""""""""""""""""""""""" "#?????????? | | "## #?????????? | | "## #?????????? | | "## "?????????? | | ## #?????????? | +----------------------------------------------------+ Best States ------------- Heat Dissipation 25 Energy Generation 10 Energy Capacity 250 Matter Stores 300 Matter Capacity 300 Sight Range 21 Terrain Scan Density 10 Armor Coverage 100 Resistance: TH 10 Evasion (%) 50 Recoil Reduction 2 Item Schematics ----------------- None Robot Schematics ------------------ None Fabricated ------------ Nothing Repaired ---------- Nothing Studied --------- None Alien Tech Used ----------------- None Achievements -------------- None Challenges ------------ None Game ------ Seed ExperimentalSiegeProtomatter Manual? 0 Play Time 00:19:27 Cumulative 190.8 hours Start 2025.11.22 @ 22:38:21 End 2025.11.22 @ 22:56:22 Sessions 1 Manual Loads 0 Difficulty Rogue Special Mode None Game No. 131 Rogue 131 Adventurer 0 Explorer 0 Win Type - Total 7 Types 5/0/1/1/0/0/0/0/0/0 Lore% 83 Gallery% 75 Achievement% 57 Wizard Run 0 Options --------- Layout 1 ASCII 0 Keyboard 0 Movement Mouse Keybinds 0 Fullscreen 2 Font 24/Smallcaps Map View 50x35 Zoom Use 0% Tactical HUD 1 Map Filters NONE Filters NONE Steam 1 RUN: a03b95a7-1c7a-4e15-8a00-5e2632f3a022